{"text_format":"3","workbook":"xlsx","n_sheets":1,"sheets":["Rozpočet neziskovej organizácie"],"not_rendered":{"charts":2,"images":1,"defined_names":1},"read":"whole","date_system":"1900"}

{"sheet":"Rozpočet neziskovej organizácie","index":0,"n_rows":40,"n_cols":7,"rows_kept":40,"merged":[[16,1,16,6],[21,1,21,5]]}
[null,"Rozpočet neziskovej organizácie",{"$nulls":3},"FIŠKÁLNY ROK",2012]
{"$rows_empty":7}
[null,null,{"$f":"CONCATENATE(\"FY \",Fiškálny_rok-1)","v":"FY 2011"},{"$f":"CONCATENATE(\"FY \",Fiškálny_rok)","v":"FY 2012"},{"$f":"CONCATENATE(\"FY \",Fiškálny_rok)","v":"FY 2012"},{"$f":"CONCATENATE(\"FY \",Fiškálny_rok)","v":"FY 2012"},{"$f":"CONCATENATE(\"FY \",Fiškálny_rok)","v":"FY 2012"}]
[null,"Výnosy","PREDCHÁDZAJÚCI ROK","PREDPOKLADANÉ","SKUTOČNÉ","ODCHÝLKA","+/- V POROVNANÍ S PREDCHÁDZAJÚCIM ROKOM"]
[null,"Dobročinné akcie a udalosti",{"v":150000,"d":"150000.00"},{"v":200000,"d":"200000.00"},{"v":180000,"d":"180000.00"},{"$f":"TabuľkaVýnosov[[#This Row],[SKUTOČNÉ]]-TabuľkaVýnosov[[#This Row],[PREDPOKLADANÉ]]","v":{"v":-20000,"d":"(20000.00)"}},{"$f":"TabuľkaVýnosov[[#This Row],[SKUTOČNÉ]]-TabuľkaVýnosov[[#This Row],[PREDCHÁDZAJÚCI ROK]]","v":{"v":30000,"d":"30000.00"}}]
[null,"Fondy",{"v":50000,"d":"50000.00"},{"v":50000,"d":"50000.00"},{"v":50000,"d":"50000.00"},{"$f":"TabuľkaVýnosov[[#This Row],[SKUTOČNÉ]]-TabuľkaVýnosov[[#This Row],[PREDPOKLADANÉ]]","v":{"v":0,"d":"0.00"}},{"$f":"TabuľkaVýnosov[[#This Row],[SKUTOČNÉ]]-TabuľkaVýnosov[[#This Row],[PREDCHÁDZAJÚCI ROK]]","v":{"v":0,"d":"0.00"}}]
[null,"Dotácie",{"v":30000,"d":"30000.00"},{"v":40000,"d":"40000.00"},{"v":20000,"d":"20000.00"},{"$f":"TabuľkaVýnosov[[#This Row],[SKUTOČNÉ]]-TabuľkaVýnosov[[#This Row],[PREDPOKLADANÉ]]","v":{"v":-20000,"d":"(20000.00)"}},{"$f":"TabuľkaVýnosov[[#This Row],[SKUTOČNÉ]]-TabuľkaVýnosov[[#This Row],[PREDCHÁDZAJÚCI ROK]]","v":{"v":-10000,"d":"(10000.00)"}}]
[null,"Príjmy z úrokov",{"$nulls":3},{"$f":"TabuľkaVýnosov[[#This Row],[SKUTOČNÉ]]-TabuľkaVýnosov[[#This Row],[PREDPOKLADANÉ]]","v":{"v":0,"d":"0.00"}},{"$f":"TabuľkaVýnosov[[#This Row],[SKUTOČNÉ]]-TabuľkaVýnosov[[#This Row],[PREDCHÁDZAJÚCI ROK]]","v":{"v":0,"d":"0.00"}}]
[null,"Rôzne",{"$nulls":3},{"$f":"TabuľkaVýnosov[[#This Row],[SKUTOČNÉ]]-TabuľkaVýnosov[[#This Row],[PREDPOKLADANÉ]]","v":{"v":0,"d":"0.00"}},{"$f":"TabuľkaVýnosov[[#This Row],[SKUTOČNÉ]]-TabuľkaVýnosov[[#This Row],[PREDCHÁDZAJÚCI ROK]]","v":{"v":0,"d":"0.00"}}]
[null,"SÚČTY",{"$f":"SUBTOTAL(109,TabuľkaVýnosov[PREDCHÁDZAJÚCI ROK])","v":{"v":230000,"d":"230,000.00 €"}},{"$f":"SUBTOTAL(109,TabuľkaVýnosov[PREDPOKLADANÉ])","v":{"v":290000,"d":"290,000.00 €"}},{"$f":"SUBTOTAL(109,TabuľkaVýnosov[SKUTOČNÉ])","v":{"v":250000,"d":"250,000.00 €"}},{"$f":"SUBTOTAL(109,TabuľkaVýnosov[ODCHÝLKA])","v":{"v":-40000,"d":"(40,000.00€)"}},{"$f":"SUBTOTAL(105,TabuľkaVýnosov[+/- V POROVNANÍ S PREDCHÁDZAJÚCIM ROKOM])","v":{"v":-10000,"d":"(10,000.00€)"}}]
{"$rows_empty":8}
[null,null,{"$f":"CONCATENATE(\"FY \",Fiškálny_rok-1)","v":"FY 2011"},{"$f":"CONCATENATE(\"FY \",Fiškálny_rok)","v":"FY 2012"},{"$f":"CONCATENATE(\"FY \",Fiškálny_rok)","v":"FY 2012"},{"$f":"CONCATENATE(\"FY \",Fiškálny_rok)","v":"FY 2012"},{"$f":"CONCATENATE(\"FY \",Fiškálny_rok)","v":"FY 2012"}]
[null,"Výdavky","PREDCHÁDZAJÚCI ROK","PREDPOKLADANÉ","SKUTOČNÉ","ODCHÝLKA","+/- V POROVNANÍ S PREDCHÁDZAJÚCIM ROKOM"]
[null,"Mzdy",{"v":15000,"d":"15000.00"},{"v":30000,"d":"30000.00"},{"v":30000,"d":"30000.00"},{"$f":"TabuľkaVýdavkov[[#This Row],[SKUTOČNÉ]]-TabuľkaVýdavkov[[#This Row],[PREDPOKLADANÉ]]","v":{"v":0,"d":"0.00"}},{"$f":"TabuľkaVýdavkov[[#This Row],[SKUTOČNÉ]]-TabuľkaVýdavkov[[#This Row],[PREDCHÁDZAJÚCI ROK]]","v":{"v":15000,"d":"15000.00"}}]
[null,"Výhody",{"v":5000,"d":"5000.00"},{"v":7500,"d":"7500.00"},{"v":7800,"d":"7800.00"},{"$f":"TabuľkaVýdavkov[[#This Row],[SKUTOČNÉ]]-TabuľkaVýdavkov[[#This Row],[PREDPOKLADANÉ]]","v":{"v":300,"d":"300.00"}},{"$f":"TabuľkaVýdavkov[[#This Row],[SKUTOČNÉ]]-TabuľkaVýdavkov[[#This Row],[PREDCHÁDZAJÚCI ROK]]","v":{"v":2800,"d":"2800.00"}}]
[null,"Nájomné",{"v":6000,"d":"6000.00"},{"v":6000,"d":"6000.00"},{"v":6000,"d":"6000.00"},{"$f":"TabuľkaVýdavkov[[#This Row],[SKUTOČNÉ]]-TabuľkaVýdavkov[[#This Row],[PREDPOKLADANÉ]]","v":{"v":0,"d":"0.00"}},{"$f":"TabuľkaVýdavkov[[#This Row],[SKUTOČNÉ]]-TabuľkaVýdavkov[[#This Row],[PREDCHÁDZAJÚCI ROK]]","v":{"v":0,"d":"0.00"}}]
[null,"Energie",{"v":1000,"d":"1000.00"},{"v":1200,"d":"1200.00"},{"v":1150,"d":"1150.00"},{"$f":"TabuľkaVýdavkov[[#This Row],[SKUTOČNÉ]]-TabuľkaVýdavkov[[#This Row],[PREDPOKLADANÉ]]","v":{"v":-50,"d":"(50.00)"}},{"$f":"TabuľkaVýdavkov[[#This Row],[SKUTOČNÉ]]-TabuľkaVýdavkov[[#This Row],[PREDCHÁDZAJÚCI ROK]]","v":{"v":150,"d":"150.00"}}]
[null,"Cestovanie a schôdze",{"v":2500,"d":"2500.00"},{"v":2000,"d":"2000.00"},{"v":2800,"d":"2800.00"},{"$f":"TabuľkaVýdavkov[[#This Row],[SKUTOČNÉ]]-TabuľkaVýdavkov[[#This Row],[PREDPOKLADANÉ]]","v":{"v":800,"d":"800.00"}},{"$f":"TabuľkaVýdavkov[[#This Row],[SKUTOČNÉ]]-TabuľkaVýdavkov[[#This Row],[PREDCHÁDZAJÚCI ROK]]","v":{"v":300,"d":"300.00"}}]
[null,"Poplatky odborníkom",{"$nulls":3},{"$f":"TabuľkaVýdavkov[[#This Row],[SKUTOČNÉ]]-TabuľkaVýdavkov[[#This Row],[PREDPOKLADANÉ]]","v":{"v":0,"d":"0.00"}},{"$f":"TabuľkaVýdavkov[[#This Row],[SKUTOČNÉ]]-TabuľkaVýdavkov[[#This Row],[PREDCHÁDZAJÚCI ROK]]","v":{"v":0,"d":"0.00"}}]
[null,"Marketing/reklama",{"$nulls":3},{"$f":"TabuľkaVýdavkov[[#This Row],[SKUTOČNÉ]]-TabuľkaVýdavkov[[#This Row],[PREDPOKLADANÉ]]","v":{"v":0,"d":"0.00"}},{"$f":"TabuľkaVýdavkov[[#This Row],[SKUTOČNÉ]]-TabuľkaVýdavkov[[#This Row],[PREDCHÁDZAJÚCI ROK]]","v":{"v":0,"d":"0.00"}}]
[null,"Poistenie",{"$nulls":3},{"$f":"TabuľkaVýdavkov[[#This Row],[SKUTOČNÉ]]-TabuľkaVýdavkov[[#This Row],[PREDPOKLADANÉ]]","v":{"v":0,"d":"0.00"}},{"$f":"TabuľkaVýdavkov[[#This Row],[SKUTOČNÉ]]-TabuľkaVýdavkov[[#This Row],[PREDCHÁDZAJÚCI ROK]]","v":{"v":0,"d":"0.00"}}]
[null,"Telefón",{"$nulls":3},{"$f":"TabuľkaVýdavkov[[#This Row],[SKUTOČNÉ]]-TabuľkaVýdavkov[[#This Row],[PREDPOKLADANÉ]]","v":{"v":0,"d":"0.00"}},{"$f":"TabuľkaVýdavkov[[#This Row],[SKUTOČNÉ]]-TabuľkaVýdavkov[[#This Row],[PREDCHÁDZAJÚCI ROK]]","v":{"v":0,"d":"0.00"}}]
[null,"Webové poplatky (webová lokalita, priestor na organizovanie schôdzí atď.)",{"$nulls":3},{"$f":"TabuľkaVýdavkov[[#This Row],[SKUTOČNÉ]]-TabuľkaVýdavkov[[#This Row],[PREDPOKLADANÉ]]","v":{"v":0,"d":"0.00"}},{"$f":"TabuľkaVýdavkov[[#This Row],[SKUTOČNÉ]]-TabuľkaVýdavkov[[#This Row],[PREDCHÁDZAJÚCI ROK]]","v":{"v":0,"d":"0.00"}}]
[null,"Vybavenie",{"$nulls":3},{"$f":"TabuľkaVýdavkov[[#This Row],[SKUTOČNÉ]]-TabuľkaVýdavkov[[#This Row],[PREDPOKLADANÉ]]","v":{"v":0,"d":"0.00"}},{"$f":"TabuľkaVýdavkov[[#This Row],[SKUTOČNÉ]]-TabuľkaVýdavkov[[#This Row],[PREDCHÁDZAJÚCI ROK]]","v":{"v":0,"d":"0.00"}}]
[null,"Spotrebný materiál",{"$nulls":3},{"$f":"TabuľkaVýdavkov[[#This Row],[SKUTOČNÉ]]-TabuľkaVýdavkov[[#This Row],[PREDPOKLADANÉ]]","v":{"v":0,"d":"0.00"}},{"$f":"TabuľkaVýdavkov[[#This Row],[SKUTOČNÉ]]-TabuľkaVýdavkov[[#This Row],[PREDCHÁDZAJÚCI ROK]]","v":{"v":0,"d":"0.00"}}]
[null,"Poštovné",{"$nulls":3},{"$f":"TabuľkaVýdavkov[[#This Row],[SKUTOČNÉ]]-TabuľkaVýdavkov[[#This Row],[PREDPOKLADANÉ]]","v":{"v":0,"d":"0.00"}},{"$f":"TabuľkaVýdavkov[[#This Row],[SKUTOČNÉ]]-TabuľkaVýdavkov[[#This Row],[PREDCHÁDZAJÚCI ROK]]","v":{"v":0,"d":"0.00"}}]
[null,"SÚČTY",{"$f":"SUBTOTAL(109,TabuľkaVýdavkov[PREDCHÁDZAJÚCI ROK])","v":{"v":29500,"d":"29,500.00 €"}},{"$f":"SUBTOTAL(109,TabuľkaVýdavkov[PREDPOKLADANÉ])","v":{"v":46700,"d":"46,700.00 €"}},{"$f":"SUBTOTAL(109,TabuľkaVýdavkov[SKUTOČNÉ])","v":{"v":47750,"d":"47,750.00 €"}},{"$f":"SUBTOTAL(109,TabuľkaVýdavkov[ODCHÝLKA])","v":{"v":1050,"d":"1,050.00 €"}},{"$f":"SUBTOTAL(109,TabuľkaVýdavkov[+/- V POROVNANÍ S PREDCHÁDZAJÚCIM ROKOM])","v":{"v":18250,"d":"18,250.00 €"}}]